Cogmind - Beta 15 @@@ ROGUE MODE // 2025.09.11 @ 23:52:21 Player: cottonman132 Result: Destroyed by H-55 Commando with Gauss Rifle Performance ------------- Evolutions (2) 1000 Regions Visited (3) 600 Robots Destroyed (49) 245 Value Destroyed (1419) 1419 Prototype IDs (1) 20 Alien Tech Used (0) 0 Bonus (0) 0 TOTAL SCORE: 3284 Bonus ------- None Cogmind --------- Core Integrity 0/550 Matter 300/300 Energy 100/100 System Corruption 21% Temperature Cool (0) Movement Core (750) Ox14 Location -8/Materials Parts ------- > --- POWER (1) -------- (None) > --- PROPULSION (3) --- (None) > --- UTILITY (5) ------ High-capacity Storage Unit Visual Processing Unit Improved Signal Interpreter > --- WEAPON (2) ------- Heavy Hammer > --- INVENTORY (20) --- Aluminum Leg Carbon-fiber Leg VSS Leg Visual Processing Unit Advanced Visual Processing Unit Improved Sensor Array Terrain Scanner Peak State ------------ > --- POWER ------------ Light Nuclear Core > --- PROPULSION ------- Light Treads Light Treads Light Treads > --- UTILITY ---------- Small Storage Unit Visual Processing Unit Improved Sensor Array Improved Signal Interpreter Utility Shielding > --- WEAPON ----------- Heavy Hammer Heavy Hammer > --- INVENTORY -------- Heavy Ion Engine Aluminum Leg High-capacity Storage Unit Visual Processing Unit Improved Sensor Array Terrain Scanner Heavy Hammer [Rating: 21] Favorites ----------- Power Ion Engine Engine Ion Engine Power Core Light Nuclear Core Propulsion Light Treads Treads Light Treads Leg Aluminum Leg Utility Small Storage Unit Device Improved Sensor Array Storage Small Storage Unit Processor Visual Processing Unit Protection Utility Shielding Weapon Heavy Hammer Launcher Grenade Launcher Impact Weapon Heavy Hammer Build | -11 -10 -9 -8 ------- Run | Yrd Mat Mat Mat Slots Evolved 4 | . . 2 2 Power . | . . . . Propulsion 1 | . . . 1 Utility 3 | . . 2 1 Weapon . | . . . . Parts Attached 32 | 4 7 13 8 Power 6 | 1 2 2 1 Engine 4 | 1 1 1 1 Core 2 | . 1 1 . Reactor . | . . . . Propulsion 10 | 2 2 4 2 Treads 5 | . 2 1 2 Leg 5 | 2 . 3 . Wheel . | . . . . Hover . | . . . . Flight . | . . . . Utility 10 | 1 . 5 4 Device 3 | . . 1 2 Storage 2 | 1 . . 1 Processor 4 | . . 3 1 Hackware . | . . . . Protection 1 | . . 1 . Artifact . | . . . . Weapon 6 | . 3 2 1 Energy Gun . | . . . . Energy Cannon . | . . . . Ballistic Gun . | . . . . Ballistic Cannon . | . . . . Launcher 2 | . 2 . . Special Weapon . | . . . . Impact Weapon 4 | . 1 2 1 Slashing Weapon . | . . . . Piercing Weapon . | . . . . Special Melee Weapon . | . . . . Unidentified Prototypes 1 | . . . 1 Corrupted Parts 2 | . . . 2 System Corruption 21 | . . . 21 Parts Lost 20 | . 6 6 8 Power 6 | . 2 1 3 Propulsion 9 | . 2 4 3 Utility 2 | . . 1 1 Weapon 3 | . 2 . 1 Highest Loss Streak 6 | . 3 2 6 To Critical Strikes . | . . . . Average Backups 6 | 2 2 6 7 Power . | . . . . Propulsion 1 | 1 1 1 2 Utility 2 | . . 3 3 Weapon . | . . . . Tool/Special . | . . . . Unused Backups 8 | . . 2 6 Power . | . . . . Propulsion 3 | . . 1 2 Utility 5 | . . 1 4 Weapon . | . . . . Tool/Special . | . . . . Average Slot Usage (%) 84 | . 63 90 88 Engine 9 | . 9 11 7 Treads 15 | . 13 13 18 Leg 5 | . 14 7 . Device 4 | . . 2 9 Storage 10 | . 14 11 9 Processor 14 | . . 18 18 Protection 5 | . . 6 7 Launcher 1 | . 5 . . Impact Weapon 15 | . 6 19 17 Peak Build Rating 21 | 4 7 15 21 Average Rating 12 | 2 4 10 18 On Entrance 5 | . 4 5 12 Naked Turns . | . . . . Heaviest Build 56 | 10 13 17 56 Greatest Support 60 | 20 40 40 60 Greatest Overweight (x) 16 | . 2 . 16 Average Overweight (x) . | . . . . Largest Inventory Capacity 20 | 8 8 8 20 Average Capacity 10 | 7 8 8 14 Most Carried 8 | 4 5 8 8 Average Carried 6 | 2 2 6 7 Final Capacity 20 | 8 8 8 20 Final Carried 8 | 3 5 8 7 Class Distribution -------------------- 65% | Mutant 32% | Assassin Dominant Class ---------------- Mutant | -10/Materials Mutant | -9/Materials Assassin | -8/Materials Resources | -11 -10 -9 -8 ----------- Run | Yrd Mat Mat Mat Matter Collected 629 | 167 110 231 121 Remotely . | . . . . Salvage Created 1421 | . 180 831 410 Parts 43 | . 14 22 7 Haulers Intercepted 2 | . 1 1 . Recyclers Shooed . | . . . . Parts Field Recycled . | . . . . Retrieved Matter . | . . . . Parts Self-Destructed . | . . . . Prevented . | . . . . Kills | -11 -10 -9 -8 ------- Run | Yrd Mat Mat Mat Combat Hostiles Destroyed 38 | . 6 23 9 Melee 20 | . 2 16 2 AOE 3 | . 3 . . Classes Destroyed 9 | . 5 2 2 Worker 2 | . . . 2 Builder 2 | . . . 2 Tunneler 2 | . 2 . . Hauler 2 | . 1 1 . Operator 1 | . . 1 . Watcher 2 | . 1 1 . Swarmer 7 | . 1 4 2 Grunt 27 | . 5 17 5 Sentry 4 | . . 2 2 Best Kill Streak 6 | . 5 6 3 Combat Bots Only 6 | . 3 6 3 Max Kills in Single Turn 2 | . 2 1 1 Gunslinging . | . . . . Exploded 1 | . 1 . . Melee 1 | . 1 1 1 Uniques/NPCs Destroyed . | . . . . Combat | -11 -10 -9 -8 -------- Run | Yrd Mat Mat Mat Hostile Shots Fired 334 | . 87 118 129 Missed 89 | . 34 25 30 Hits 245 | . 53 93 99 Projectile 245 | . 53 93 99 Critical Strikes 8 | . 2 5 1 Actively Blocked 1 | . . 1 . Damage Taken 3308 | . 752 1116 1440 Core 983 | . 182 246 555 Absorbed by Shields . | . . . . Redirected to Shielding 27 | . . 15 12 Core Remaining (%) 55 | 100 27 38 . Volleys Fired 10 | . 10 . . Largest 1 | . 1 . . Hottest 30 | . 30 . . Shots Fired 10 | . 10 . . Gun . | . . . . Cannon . | . . . . Launcher 10 | . 10 . . Special . | . . . . Kinetic . | . . . . Thermal . | . . . . Explosive 10 | . 10 . . Electromagnetic . | . . . . Robot Hit Streak 2 | . 2 . . Robot Miss Streak 2 | . 2 . . Penetration Max . | . . . . Secondary Targets . | . . . . Shots Hit Robots 101 | . 7 67 27 Core Hits 30 | . 14 13 3 Critical Kills 2 | . . 2 . Critical Parts Destroyed 15 | . 2 6 7 Critical Strikes 17 | . 2 8 7 Smash 17 | . 2 8 7 Melee Attacks 166 | . 6 93 67 Impact 166 | . 6 93 67 Slashing . | . . . . Piercing . | . . . . Sneak Attacks 9 | . 1 1 7 Combat Hostiles 2 | . . . 2 Follow-up Attacks 15 | . . 8 7 Damage Inflicted 4305 | . 661 2429 1215 Guns . | . . . . Cannons . | . . . . Explosions 509 | . 509 . . Melee 3790 | . 146 2429 1215 Ramming 6 | . 6 . . Kinetic . | . . . . Thermal . | . . . . Explosive 509 | . 509 . . Electromagnetic . | . . . . Impact 3790 | . 146 2429 1215 Slashing . | . . . . Piercing . | . . . . Highest Corruption 21 | . . . 21 Average Corruption 20 | . . . 20 Corruption Purged . | . . . . Corruption Blocked . | . . . . Effects 29 | . . . 29 Message Errors 6 | . . . 6 Matter Fused 6 | . . . 6 Heat Flow Errors 5 | . . . 5 Energy Discharges 5 | . . . 5 Parts Rejected 2 | . . . 2 Data Loss (minor) 2 | . . . 2 Alerts 1 | . . . 1 Misdirections 2 | . . . 2 Overload Shots . | . . . . Overflow Damage 942 | . 78 377 487 Projectiles . | . . . . Explosions 10 | . 10 . . Melee 932 | . 68 377 487 Knockbacks 15 | . . 10 5 Impact 14 | . . 9 5 Kinetic . | . . . . Secondary 1 | . . 1 . Self-Inflicted Damage 67 | . 67 . . Shots 2 | . 2 . . Rammed . | . . . . Targets Rammed 2 | 1 1 . . Kicked 2 | 1 1 . . Crushed . | . . . . Highest Temperature 271 | . 30 7 271 Average Temperature 85 | . 9 5 108 Received Heat Transfer 1158 | . 402 432 324 Siege Activations . | . . . . Martial Activations . | . . . . Shielding Activations . | . . . . Robots Disrupted . | . . . . Combat Hostiles . | . . . . Robots Corrupted 18 | . 2 8 8 Combat Hostiles 15 | . 1 7 7 Parts Fried 28 | . 2 12 14 Impact Corruptions 44 | . 5 21 18 Robots Melted . | . . . . Combat Hostiles . | . . . . Parts Melted . | . . . . Heat Transferred . | . . . . Parts Sabotaged . | . . . . Parts Stolen . | . . . . Parts Stripped . | . . . . Power Chain Reactions . | . . . . Alert | -11 -10 -9 -8 ------- Run | Yrd Mat Mat Mat Maximum Alert Level 1 | . . 1 . Low Security (%) 94 | 100 100 85 100 Level 1 5 | . . 14 . Level 2 . | . . . . Level 3 . | . . . . Level 4 . | . . . . Level 5 . | . . . . High Security . | . . . . Max Security . | . . . . Peak Influence 273 | . 181 273 175 Initial 110 | . . 69 110 Average 111 | . 84 142 97 Influence Increases 1380 | . 365 657 358 Destroy 0b10 Robot/C 760 | . 120 460 180 Destroy 0b10 Robot/NC 55 | . 20 15 20 Destroy Leader 178 | . 44 84 50 Successful Hack 16 | . . 16 . Disable Machine 60 | . 15 30 15 Destroy Structure 86 | . 61 7 18 Lose Combat Pursuer 225 | . 105 45 75 Influence Decreases 1349 | . 200 560 589 Entered New Map 248 | . . 96 152 Time Decay 921 | . 150 404 367 Lost Part 180 | . 50 60 70 Squads Dispatched 6 | . 2 2 2 Investigation 4 | . 1 2 1 Extermination . | . . . . Reinforcement 2 | . 1 . 1 Assault . | . . . . Garrison . | . . . . Intercept . | . . . . Searches Triggered . | . . . . Construction Impeded . | . . . . Haulers Reinforced . | . . . . Active Scanning Responses . | . . . . Cargo Convoy Interrupts . | . . . . Stealth | -11 -10 -9 -8 --------- Run | Yrd Mat Mat Mat Distress Signals 1 | . . 1 . Communications Jammed . | . . . . Distress Signals . | . . . . Times Spotted 65 | . 17 32 16 Peak Tracking Total 7 | . 7 4 4 Tactical Retreats 8 | . 2 2 4 Traps | -11 -10 -9 -8 ------- Run | Yrd Mat Mat Mat Traps Triggered 3 | . 1 1 1 Indirectly . | . . . . Trap Hack Attempts . | . . . . Triggered . | . . . . Disarmed . | . . . . Reprogrammed . | . . . . Reused . | . . . . Traps Extracted . | . . . . Installed . | . . . . Triggered . | . . . . Machines | -11 -10 -9 -8 ---------- Run | Yrd Mat Mat Mat Machines Disabled 4 | . 1 2 1 Max in Single Turn 1 | . 1 1 1 Machines Repaired . | . . . . Machines Dismantled . | . . . . Machines Sabotaged . | . . . . Overloaded Fab Kills . | . . . . Hacking | -11 -10 -9 -8 --------- Run | Yrd Mat Mat Mat Machines Accessed 6 | . . 5 1 Terminals 5 | . . 4 1 Fabricators . | . . . . Repair Stations . | . . . . Recycling Units . | . . . . Scanalyzers 1 | . . 1 . Garrison Access . | . . . . Total Hacks 13 | . . 10 3 Successful 9 | . . 9 . Failed 4 | . . 1 3 Catastrophic 1 | . . . 1 Database Lockouts . | . . . . Manual 5 | . . 3 2 Terminals 11 | . . 8 3 Fabricators . | . . . . Repair Stations . | . . . . Recycling Units . | . . . . Scanalyzers 2 | . . 2 . Garrison Access . | . . . . Terminal Hacks 6 | . . 6 . Robot Analysis 1 | . . 1 . Alert Level 2 | . . 2 . Locate Traps 2 | . . 2 . Zone Layout 1 | . . 1 . Fabricator Hacks . | . . . . Repair Station Hacks . | . . . . Recycling Unit Hacks . | . . . . Scanalyzer 2 | . . 2 . Insert Component 1 | . . 1 . Analyze 1 | . . 1 . Garrison Access Hacks . | . . . . Unauthorized Hacks 1 | . . 1 . Terminals 1 | . . 1 . Botnet 1 | . . 1 . Fabricators . | . . . . Repair Stations . | . . . . Recycling Units . | . . . . Scanalyzers . | . . . . Garrison Access . | . . . . Data Cores Recovered 1 | . . 1 . Used . | . . . . Hacking Detections 4 | . . 3 1 Full Trace Events 2 | . . 1 1 Feedback Events . | . . . . Feedback Blocked . | . . . . Robot Schematics Acquired . | . . . . Robots Built . | . . . . Authchips . | . . . . Time . | . . . . Total Robot Build Rating . | . . . . Part Schematics Acquired 1 | . . 1 . Parts Built . | . . . . Authchips . | . . . . Time . | . . . . Total Part Build Rating . | . . . . Parts Repaired . | . . . . Time . | . . . . Parts Recycled . | . . . . Recycled Matter . | . . . . Retrieved Matter . | . . . . Retrieved Components . | . . . . Parts Scanalyzed 1 | . . 1 . Part Schematics Acquired 1 | . . 1 . Parts Damaged . | . . . . Bothacking | -11 -10 -9 -8 ------------ Run | Yrd Mat Mat Mat Used RIF Installer . | . . . . Robots Hacked . | . . . . Non-combat . | . . . . Combat . | . . . . Robot Hacks Applied . | . . . . Relay Couplers Released . | . . . . Fabnet Peak Effective % . | . . . . Robots Rewired . | . . . . Allies Hacked . | . . . . Hacks Repelled . | . . . . Allies | -11 -10 -9 -8 -------- Run | Yrd Mat Mat Mat Total Allies . | . . . . Largest Group . | . . . . Highest-Rated Group . | . . . . Highest-Rated Ally . | . . . . Total Orders . | . . . . Ally Attacks . | . . . . Total Damage . | . . . . Kills . | . . . . Allies Corrupted . | . . . . Allies Melted . | . . . . Intel | -11 -10 -9 -8 ------- Run | Yrd Mat Mat Mat Active Infowar (turns) 1551 | . . 652 899 Optics 1304 | . . 405 899 Sensors 1061 | . . 247 814 Terrain 92 | . . . 92 Robot Analysis Total 1 | . . 1 . Derelict Logs Recovered . | . . . . Drone Launches . | . . . . Drone Recoveries . | . . . . Exploration | -11 -10 -9 -8 ------------- Run | Yrd Mat Mat Mat Turns Passed 2373 | 55 456 963 899 Spaces Moved 1144 | 46 287 426 385 Core 25 | 16 3 . 6 Treads 733 | . 112 242 379 Legs 386 | 30 172 184 . Wheels . | . . . . Hover . | . . . . Flight . | . . . . Fastest Speed 50 | 50 120 120 160 Average Speed 150 | 95 135 142 176 Slowest Speed 850 | 120 160 160 850 Overloaded Moves . | . . . . Propulsion Burnouts . | . . . . Robots Hopped . | . . . . Potential Cave-ins . | . . . . Cave-ins Triggered . | . . . . Exploration Rate (%) 29 | 3 55 30 28 Regions Visited 3 Branch Regions . Pre-discovered Areas . | . . . . Known Exits Taken 1 | . . 1 . Unknown Exits Taken 2 | 1 1 . . Scrap Searched . | . . . . Spaces Dug 41 | . 16 7 18 Terrain Destroyed 84 | . 59 7 18 Melee 25 | . . 7 18 Projectile . | . . . . AOE 59 | . 59 . . Terrain Rammed . | . . . . Walls Destroyed . | . . . . Machines Disabled . | . . . . Actions | -11 -10 -9 -8 --------- Run | Yrd Mat Mat Mat Total 1532 | 57 332 634 509 Wait 155 | . 13 88 54 Move 1141 | 45 286 425 385 Hop . | . . . . Pick Up 39 | 7 9 18 5 Fast Attach 3 | . . 1 2 Attach 25 | 4 7 10 4 Detach . | . . . . Swap 8 | . . 4 4 Drop 8 | . . 6 2 Fire 10 | . 10 . . Melee 141 | . 6 82 53 Ram . | . . . . Kick 2 | 1 1 . . Crush . | . . . . Escape Stasis . | . . . . Rewire . | . . . . Trap . | . . . . Miscellaneous . | . . . . Route ------- -11/Scrapyard -10/Materials (discovered 3 exits: *Mat x2 / [*Min]) -9/Materials -8/Materials History --------- Turn | Location | Event 5 | -11/Scrapyard | Discovered new exit (range 15) 56 | -11/Scrapyard | Entered Materials 95 | -10/Materials | Discovered new exit (range 13) 166 | -10/Materials | Discovered new exit (range 3) 274 | -10/Materials | Core integrity fell below 50% 336 | -10/Materials | Lost 3 parts (1p2n) 345 | -10/Materials | Build established: Mutant 480 | -10/Materials | Discovered new exit (range 12) 512 | -10/Materials | Entered another Materials area 512 | -9/Materials | Evolved 2 slots: Utility x2 1322 | -9/Materials | Core integrity fell below 50% 1396 | -9/Materials | Discovered new exit (range 4) 1401 | -9/Materials | Identified exit to Materials 1475 | -9/Materials | Entered another Materials area 1475 | -8/Materials | Evolved 2 slots: Propulsion x1, Utility x1 1791 | -8/Materials | Build established: Assassin 1800 | -8/Materials | System corruption reached 10% 2341 | -8/Materials | Core integrity fell below 50% 2367 | -8/Materials | Core integrity fell below 20% 2374 | -8/Materials | Destroyed by H-55 Commando with Gauss Rifle Last Messages --------------- 02318_ Atomic Centrifuge disabled. 02321_ Slug penetrates Atomic Centrifuge. 02321_ Atomic Centrifuge disabled. 02327_ Penetrated by Slug. 02327_ Hvy. Hammer destroyed. 02328_ System corrupted: Utility Shielding rejected. 02330_ Penetrated by Slug. 02330_ Lgt. Treads destroyed. 02340_ Penetrated by Slug. 02343_ Slug penetrates Wall. 02346_ Penetrated by Slug. 02349_ Slug penetrates Atomic Centrifuge. 02352_ Atomic Centrifuge disabled. 02352_ Hvy. Ion Engine destroyed. 02352_ R-06 Scavenger collects Utility Shielding. 02355_ Penetrated by Slug. 02360_ B>347FFBPIBKBXJIHJQDW 7R4:AYY1%RI AS 02368_ Penetrated by Slug. Map ----- +----------------------------------------------------+ | ######### #?????????? #??????????????? | | #?????####+#####????### ###????????????? | | #?????# [#????# #????????????? | | #?????# """ #????# #????????????? | | #?????#= """ ###### #????????????? | | ??????# """ + +????????????? | | ??????# ###### #????????????? | | ??????#[ """ #????# #????????????? | | ??????# """ #????# #????????????? | | ??????# """ = #????## ##????????????? | | ??????# #?????# #?????????????? | | ####??##########?????# #?????????????? | | #?????????????????# ##########????? | | ##????????????????# +????? | | "" ##????????????????# ######## #????? | | "" ##????????????????# #?????????????? | | " #?????????????????# #?????????????? | | #?????????????????# #?????????????? | | ####???????????#########/##########??????? | | #????????????# Y #??????? | | #????????????# #??????? | | #??#?????????#! #??????? | | #????????????# #??????? | | #????????????# "" " """ """ #??????? | | #####??????????# """ """ """ #??????? | | #??????????# """ "" @ "" """ +??????? | | """ #??????????# h #??????? | | """ #??????????#############+######??????? | | """ #????????????????????????????????????? | | #????????????????????????????????????? | | #????????????????????????????????????? | | T"" #????????????????????????????????????? | | """ #????????????????????????????????????? | | #????????????????????????????????????? | | #####????????????????????????????????????? | | ?????????????????????????????????????????? | | #####????????????????????????????????????? | | #???#????????????????????????????????? | | " #????????????????????????????????????? | | "" #????????????????????????????????????? | | "" #??????#?????????????????????????????? | | "" #????????????????????????????????????? | | " !#????????????????????????????????????? | | ##???????????????????????????????????? | | "#?????????? ????????????????????????? | | #"####??#????????????????????????????????? | | ####?????????????????????????????????????? | | ???#?????????????????????????????????????? | | ?????????????????????????????????????????? | | ?????????????????????????????????????????? | +----------------------------------------------------+ Best States ------------- Heat Dissipation 31 Energy Generation 14 Energy Capacity 280 Matter Stores 300 Matter Capacity 300 Sight Range 18 Robot Scan Range 15 Terrain Scan Range 14 Terrain Scan Density 10 Utility Shielding 33 Evasion (%) 55 Recoil Reduction 3 Item Schematics ----------------- Hvy. Hammer | -9/Materials | Scanalyzed Robot Schematics ------------------ None Fabricated ------------ Nothing Repaired ---------- Nothing Alien Tech Used ----------------- None Achievements -------------- System Compromised True Hacker Challenges ------------ None Game ------ Seed ReinforcedStormCharge Manual? 0 Play Time 00:29:15 Cumulative 4.8 hours Start 2025.09.11 @ 23:15:38 End 2025.09.11 @ 23:52:21 Sessions 2 Manual Loads 0 Difficulty Rogue Special Mode None Game No. 9 Rogue 9 Adventurer 0 Explorer 0 Win Type - Total 0 Types 0/0/0/0/0/0/0/0/0/0 Lore% 9 Gallery% 7 Achievement% 10 Wizard Run 0 Options --------- Layout 2 ASCII 0 Keyboard 0 Movement Mouse Keybinds 0 Fullscreen 1 Font 24/Smallcaps Map View 50x44 Zoom Use 0% Tactical HUD 1 Map Filters NONE Filters NONE Steam 1 RUN: 8e147813-4703-41f6-ad29-46cd9cc5d1b6